bitfinex/quotes_ETHUSD_20230118
["timestamp","ask_amount","ask_price","bid_price","bid_amount"]
[1674028517728,20.69767154,1583.5,1583.4,0.06094095]
[1674028518993,19.69767154,1583.5,1583.4,0.06094095]
[1674028519339,20.35938684,1583.5,1583.4,0.06094095]
[1674028519515,19.36727849,1583.5,1583.4,0.06094095]
[1674028522455,20.3591761,1583.5,1583.4,0.06094095]
[1674028522832,20.28649898,1583.5,1583.4,0.06094095]
[1674028523143,19.36706775,1583.5,1583.4,0.06094095]
[1674028523352,26.9602961,1583.5,1583.4,0.01]
[1674028523692,27.22575679,1583.5,1582.9,6.38017095]
[1674028523882,1.195,1583.2,1582.9,6.38017095]
[1674028526407,9.5448,1583.3,1582.9,22.13181502]
[1674028529136,15.8608,1583.3,1582.9,6.38017095]
[1674028530775,15.8748,1583.3,1582.9,6.38017095]
[1674028531045,1.58748,1583.2,1582.9,0.06294095]
[1674028531212,9.10188,1583.2,1582.9,0.06294095]
[1674028531420,1.198,1583.1,1582.9,0.06294095]
[1674028532046,7.51475,1583.1,1582.9,0.06294095]
[1674028532499,1.198,1583.1,1582.9,0.06294095]
[1674028532676,3.491298,1583.1,1582.9,0.06294095]
[1674028533925,3.491298,1583.1,1583.0,0.25209251]
[1674028536497,2.293298,1583.1,1583.0,0.25209251]
[1674028537928,1.198,1583.2,1583.0,8.12420251]
[1674028538138,8.4118,1583.3,1583.0,8.12420251]
[1674028538919,27.35962,1583.3,1583.0,0.2481051]
[1674028539079,15.368972,1583.2,1583.0,0.2481051]
[1674028540925,15.266572,1583.2,1583.0,0.2481051]
[1674028541076,1.196,1583.1,1583.0,0.2481051]
[1674028541286,3.73181257,1583.1,1583.0,0.2481051]
[1674028541545,30.86057257,1583.1,1583.0,0.2481051]
[1674028541716,34.59141324,1583.1,1583.0,0.2481051]
[1674028541926,33.67501215,1583.1,1583.0,0.2481051]
[1674028542140,33.67501215,1583.1,1582.9,0.06294095]
[1674028542349,21.34533,1583.0,1582.9,0.06294095]
[1674028543229,21.57533,1583.0,1582.9,0.06294095]
[1674028543559,24.20820568,1583.0,1582.9,0.06294095]
[1674028543703,11.34398568,1583.0,1582.9,0.06294095]
[1674028544130,17.66109568,1583.0,1582.9,0.06294095]
[1674028544814,23.97820568,1583.0,1582.9,0.06294095]
[1674028546053,23.93140568,1583.0,1582.9,0.06294095]
[1674028547958,27.13140568,1583.0,1582.9,0.06294095]
[1674028548392,27.14340568,1583.0,1582.9,0.05094095]
[1674028548539,27.19740568,1583.0,1582.6,0.05721172]
[1674028548752,10.23649057,1582.9,1582.6,0.05721172]
[1674028549022,1.199,1582.7,1582.6,0.05721172]
[1674028549391,1.0657,1582.7,1582.6,0.05721172]
[1674028550824,7.38321,1582.8,1582.6,0.05721172]
[1674028552913,20.06664057,1582.9,1582.6,6.39917772]
[1674028553061,7.6047,1582.9,1582.6,6.39917772]
[1674028553956,13.92225,1582.9,1582.6,0.08069772]
[1674028554319,13.87925,1582.9,1582.6,0.08069772]
[1674028555764,7.5617,1582.9,1582.6,13.71804772]
[1674028555917,7.5617,1582.9,1582.6,12.71804772]
[1674028556124,7.5617,1582.9,1582.7,7.58988477]
[1674028556335,0.023,1582.9,1582.7,7.58988477]
[1674028556545,0.023,1582.9,1582.7,13.90819477]
[1674028559298,3.2,1583.0,1582.7,13.97113572]
[1674028559943,3.2,1583.0,1582.8,3.11662407]
[1674028560119,3.2,1583.0,1582.9,22.38081648]
[1674028560345,3.2,1583.0,1582.9,16.12624743]
[1674028560534,3.2,1583.0,1582.9,22.44375743]
[1674028560872,3.2,1583.0,1582.9,16.12624743]
[1674028561761,3.2,1583.0,1582.9,22.44375743]
[1674028561947,3.2,1583.0,1582.9,24.05550916]
[1674028562111,3.2,1583.0,1582.9,23.66012359]
[1674028562555,3.2,1583.0,1582.9,22.88387692]
[1674028562849,1.2,1583.0,1582.9,22.88387692]
[1674028564713,1.2,1583.0,1582.9,22.46612359]
[1674028565867,1.2,1583.0,1582.9,16.14861359]
[1674028566892,1.2,1583.0,1582.9,6.71447952]
[1674028567103,1.2,1583.0,1582.9,0.08530711]
[1674028567294,1.2,1583.0,1582.9,6.33987616]
[1674028567509,1.2,1583.0,1582.9,6.40281711]
[1674028570129,1.2,1583.0,1582.9,12.72032711]
[1674028570491,1.0759,1583.0,1582.9,12.72032711]
[1674028570705,1.0759,1583.0,1582.9,14.62413082]
[1674028570873,0.9514,1583.0,1582.9,24.05826489]
[1674028571093,0.9514,1583.0,1582.9,24.47592178]
[1674028571700,0.9514,1583.0,1582.9,24.47392178]
[1674028571912,0.9514,1583.0,1582.9,24.47592178]
[1674028572379,0.9514,1583.0,1582.9,24.05826489]
[1674028572749,0.8978,1583.0,1582.9,24.05826489]
[1674028573520,0.8584,1583.0,1582.9,24.05826489]
[1674028574159,0.8584,1583.0,1582.9,24.47581876]
[1674028574365,0.8584,1583.0,1582.9,24.05826489]
[1674028574598,0.8584,1583.0,1582.9,24.47576006]
[1674028574757,0.8301,1583.0,1582.9,24.05826489]
[1674028575382,0.8301,1583.0,1582.9,24.47570366]
[1674028577436,0.8301,1583.0,1582.9,23.98826489]
[1674028577748,0.8301,1583.0,1582.9,24.40565847]
[1674028580532,0.8301,1583.0,1582.9,24.40789217]
[1674028583262,0.8301,1583.0,1582.9,23.99049859]
[1674028584644,0.8301,1583.0,1582.9,24.40789246]
[1674028584854,0.8301,1583.0,1582.9,23.99049859]
[1674028585427,0.8301,1583.0,1582.9,24.40791174]
[1674028585784,0.8301,1583.0,1582.9,23.99049859]
[1674028586237,0.8301,1583.0,1582.9,24.4079895]
[1674028587312,0.8301,1583.0,1582.9,23.99049859]
[1674028587480,0.8301,1583.0,1582.9,27.40800573]
[1674028588120,0.8301,1583.0,1582.9,28.13081712]
[1674028588829,0.8301,1583.0,1582.9,27.40800573]
[1674028589158,0.8301,1583.0,1582.9,28.13081406]
[1674028593150,0.8301,1583.0,1582.9,28.79039845]
[1674028594185,0.8301,1583.0,1582.9,3.48044809]
[1674028594320,0.8301,1583.0,1582.9,3.41750714]
[1674028594822,0.8301,1583.0,1582.9,0.41750714]
[1674028595036,0.8301,1583.0,1582.8,29.66299095]
[1674028595681,0.8301,1583.0,1582.8,19.01609095]
[1674028595893,0.8301,1583.0,1582.9,0.41821909]
[1674028596294,0.7407,1583.0,1582.9,0.41821909]
[1674028598083,0.7407,1583.0,1582.9,6.73572909]
[1674028598401,0.7407,1583.0,1582.9,6.79867004]
[1674028598731,0.7407,1583.0,1582.9,0.48116004]
[1674028598982,0.7407,1583.0,1582.9,0.41821909]
[1674028599293,0.6899,1583.0,1582.9,6.73572909]
[1674028599504,0.6899,1583.0,1582.9,6.79867004]
[1674028601407,0.6899,1583.0,1582.9,25.21926594]
[1674028601761,0.6899,1583.0,1582.9,26.21065128]
[1674028601969,0.6899,1583.0,1582.9,29.93456191]
[1674028603577,0.6899,1583.0,1582.9,29.27497752]
[1674028603753,0.6899,1583.0,1582.9,30.59682464]
[1674028603964,0.6899,1583.0,1582.9,35.54866587]
[1674028604172,0.6899,1583.0,1582.9,35.19402226]
[1674028604553,0.6899,1583.0,1582.9,36.84633116]
[1674028605173,7.6098,1583.4,1582.9,36.84633116]
[1674028605381,7.6098,1583.4,1583.1,0.66180137]
[1674028605703,7.6098,1583.4,1583.2,12.63264]
[1674028605847,7.6098,1583.4,1583.2,12.69558095]
[1674028606272,0.023,1583.4,1583.2,12.69558095]
[1674028606480,0.6613515,1583.5,1583.2,12.69558095]
[1674028606909,1.33823872,1583.5,1583.2,12.69558095]
[1674028608654,7.9021838,1583.6,1583.3,3.53446855]
[1674028608795,7.9021838,1583.6,1583.4,23.49518407]
[1674028609005,7.9021838,1583.6,1583.4,23.55812502]
[1674028609214,7.9021838,1583.6,1583.5,3.11662407]
[1674028609215,0.1668838,1583.6,1583.5,3.11662407]
[1674028609530,0.1438838,1583.6,1583.5,24.41801987]
[1674028609745,0.1438838,1583.6,1583.5,22.12492502]
[1674028611787,0.1438838,1583.6,1583.5,22.12292502]
[1674028611983,0.1438838,1583.6,1583.5,22.12492502]
[1674028614821,0.1438838,1583.6,1583.5,0.06294095]
[1674028615101,0.1438838,1583.6,1583.3,14.66296095]
[1674028615316,0.1438838,1583.6,1583.3,17.77958502]
[1674028615574,4.11619027,1583.6,1583.3,17.77958502]
[1674028615946,4.11619027,1583.6,1583.3,6.37866095]
[1674028617464,4.11619027,1583.6,1583.3,0.06294095]
[1674028617465,4.77754177,1583.6,1583.3,0.06294095]
[1674028617616,17.40706177,1583.6,1583.2,9.37897095]
[1674028617827,1.74070618,1583.5,1583.2,9.37897095]
[1674028620400,1.74070618,1583.5,1583.2,6.37897095]
[1674028620565,1.74070618,1583.5,1583.2,6.37514982]
[1674028621524,1.76307234,1583.5,1583.2,6.37514982]
[1674028624080,8.73956384,1583.5,1583.2,0.06294095]
[1674028624294,0.17630723,1583.4,1583.1,20.25147095]
[1674028624608,0.17630723,1583.4,1583.1,23.36809502]
[1674028625831,0.17630723,1583.4,1583.2,6.85783073]
[1674028626075,0.17630723,1583.4,1583.2,6.92077168]
[1674028626285,0.17630723,1583.4,1583.3,6.81541027]
[1674028626444,0.17630723,1583.4,1583.3,6.87835122]
[1674028627396,0.17630723,1583.4,1583.3,0.06294095]
[1674028627611,0.17630723,1583.4,1583.1,23.36809502]
[1674028627852,8.10121234,1583.5,1583.1,23.36809502]
[1674028630227,1.78607234,1583.5,1583.1,23.36809502]
[1674028630438,1.76307234,1583.5,1583.1,23.36809502]
[1674028634636,0.02236616,1583.5,1583.2,3.11662407]
[1674028634900,0.02236616,1583.5,1583.2,15.74875407]
[1674028635086,0.02236616,1583.5,1583.2,15.81169502]
[1674028636114,0.02236616,1583.5,1583.3,3.11662407]
[1674028636323,0.02236616,1583.5,1583.4,6.31552]
[1674028636642,0.02236616,1583.5,1583.4,6.37846095]
[1674028640919,0.02019687,1583.5,1583.4,6.37846095]
[1674028641653,3.2438838,1583.6,1583.4,6.37846095]
[1674028646790,3.9052353,1583.6,1583.4,6.37846095]
[1674028646958,4.41197799,1583.6,1583.4,0.06294095]
[1674028647172,4.41197799,1583.6,1583.3,9.49523502]
[1674028648715,18.03354634,1583.6,1583.3,0.06294095]
[1674028648879,18.05654634,1583.6,1583.2,6.38125406]
[1674028649557,18.05654634,1583.6,1583.3,3.11662407]
[1674028649558,4.92034365,1583.6,1583.3,3.11662407]
[1674028649715,4.92034365,1583.6,1583.4,6.31552]
[1674028649716,3.9052353,1583.6,1583.4,6.31552]
[1674028649924,3.9052353,1583.6,1583.4,6.37846095]
[1674028650190,4.89734365,1583.6,1583.4,6.37846095]
[1674028650350,4.80884365,1583.6,1583.4,6.37846095]
[1674028650562,3.8167353,1583.6,1583.4,6.37846095]
[1674028653416,3.7515353,1583.6,1583.4,6.37846095]
[1674028654252,3.0901838,1583.6,1583.4,6.37846095]
[1674028654637,3.7515353,1583.6,1583.4,6.37846095]
[1674028654942,3.0901838,1583.6,1583.4,25.53878552]
[1674028655466,3.0901838,1583.6,1583.5,15.74686407]
[1674028655660,3.0901838,1583.6,1583.5,15.80980502]
[1674028657656,3.0568838,1583.6,1583.5,15.80980502]
[1674028657845,3.0568838,1583.6,1583.5,18.36360357]
[1674028660511,3.0568838,1583.6,1583.5,0.06294095]
[1674028660685,3.0568838,1583.6,1583.4,12.69398095]
[1674028660905,3.0568838,1583.6,1583.4,15.81060502]
[1674028661152,3.0568838,1583.6,1583.4,12.69398095]
[1674028668176,3.0568838,1583.6,1583.4,15.81060502]
[1674028672591,3.0568838,1583.6,1583.4,17.69549228]
[1674028673329,3.7182353,1583.6,1583.4,17.69549228]
[1674028674112,3.0568838,1583.6,1583.4,17.69549228]
[1674028674364,3.7182353,1583.6,1583.4,24.01101228]
[1674028677480,3.7182353,1583.6,1583.5,3.11662407]
[1674028677719,4.39490336,1583.6,1583.5,9.43174407]
[1674028677946,4.39490336,1583.6,1583.5,9.49468502]
[1674028679089,4.39490336,1583.6,1583.5,0.06054684]
[1674028679300,5.9447409,1583.6,1583.3,31.36342684]
[1674028679632,5.29107284,1583.6,1583.3,34.48005091]
[1674028681390,1.33805251,1583.5,1583.3,16.78052684]
[1674028681602,4.62972134,1583.6,1583.3,16.78052684]
[1674028681603,5.29107284,1583.6,1583.3,16.78052684]
[1674028682357,5.29107284,1583.6,1583.3,23.09644684]
[1674028685316,1.33812274,1583.5,1583.3,23.09644684]
[1674028685740,1.33812274,1583.5,1583.4,3.11662407]
[1674028685945,4.73334365,1583.6,1583.4,9.43214407]
[1674028686158,4.71034365,1583.6,1583.4,15.81021091]
[1674028688131,3.7182353,1583.6,1583.4,15.81021091]
[1674028691160,0.67694028,1583.5,1583.4,0.06254684]
[1674028691421,2.04087216,1583.5,1583.2,0.06254684]
[1674028691580,1.33960471,1583.4,1583.1,21.04908082]
[1674028691791,0.93301809,1583.4,1583.1,24.16570489]
[1674028692045,0.66266443,1583.4,1583.1,24.16570489]
[1674028692427,2.02659631,1583.5,1583.1,30.48242489]
[1674028692861,1.33947736,1583.4,1583.1,30.48242489]
[1674028693205,1.33947736,1583.4,1583.1,29.75753091]
[1674028694330,1.33947736,1583.4,1583.1,30.4823186]
[1674028694527,10.91927006,1583.5,1583.1,29.75753091]
[1674028694731,10.93946692,1583.5,1583.1,29.75753091]
[1674028695203,10.93946692,1583.5,1583.1,30.48193565]
[1674028696441,10.93946692,1583.5,1583.1,29.75753091]
[1674028698229,1.09394669,1583.4,1583.1,29.75753091]
[1674028698439,10.93946692,1583.5,1583.1,29.75753091]
[1674028701157,2.33148959,1583.4,1583.1,0.06254684]
[1674028701366,2.53938124,1583.3,1583.0,0.06254684]
[1674028701606,2.53938124,1583.3,1582.9,6.31748]
[1674028701607,8.06581443,1583.3,1582.9,6.31748]
[1674028701835,0.80658144,1583.2,1582.9,6.38002684]
[1674028703270,0.74158144,1583.2,1582.9,6.38002684]
[1674028703701,0.69498144,1583.2,1582.9,6.38002684]
[1674028706238,0.61888144,1583.2,1582.9,6.38002684]
[1674028706454,0.55358144,1583.2,1582.9,6.38002684]
[1674028706618,9.91656129,1583.3,1582.9,6.38002684]
[1674028706845,8.16679686,1583.3,1582.9,12.69753684]
[1674028708455,8.18589686,1583.3,1582.9,22.13167091]
[1674028710312,8.18589686,1583.3,1583.0,3.11662407]
[1674028710539,8.18589686,1583.3,1583.1,6.31672]
[1674028710763,0.08619686,1583.3,1583.1,6.37926684]
[1674028710921,0.02019686,1583.3,1583.1,6.37926684]
[1674028714551,0.02019686,1583.3,1583.1,8.59223193]
[1674028715426,0.02019686,1583.3,1583.1,14.90895193]
[1674028716450,0.02019686,1583.3,1583.1,18.025576]
[1674028716569,0.02019686,1583.3,1583.1,24.342296]
[1674028718584,29.24352111,1583.6,1583.1,32.223996]
[1674028719405,29.24352111,1583.6,1583.2,3.2223996]
[1674028719670,1.33410196,1583.5,1583.2,3.2223996]
[1674028719824,1.33410196,1583.5,1583.2,9.5385896]
[1674028720034,1.33410196,1583.5,1583.2,9.60113644]
[1674028720876,1.33410196,1583.5,1583.2,6.37873684]
[1674028721398,2.32621031,1583.5,1583.2,6.37873684]
[1674028723227,1.33410196,1583.4,1583.2,6.37873684]
[1674028723771,0.66131339,1583.4,1583.2,6.37873684]
[1674028723951,1.33424514,1583.4,1583.2,6.37873684]
[1674028724656,1.78495288,1583.4,1583.2,0.06254684]
[1674028725056,6.31635,1583.2,1582.9,18.32534684]
[1674028725343,7.58235,1583.2,1582.9,18.32534684]
[1674028726127,1.266,1583.2,1582.9,24.64284684]
[1674028726406,3.66293642,1583.2,1582.9,24.64284684]
[1674028727766,1.86031339,1583.0,1582.9,0.06254684]
[1674028728064,1.86031339,1583.0,1582.6,0.05721172]
[1674028728065,27.42522824,1583.0,1582.6,0.05721172]
[1674028728278,12.63582,1582.8,1582.6,0.05721172]
[1674028728492,12.70182,1582.8,1582.6,0.05721172]
[1674028728799,7.55850686,1582.7,1582.6,0.05721172]
[1674028729023,8.82450686,1582.7,1582.6,0.05721172]
[1674028729360,11.0118118,1582.7,1582.6,0.05721172]
[1674028729505,9.84934269,1582.7,1582.6,0.05721172]
[1674028731240,9.75964269,1582.7,1582.6,0.05721172]
[1674028735272,23.82226269,1582.7,1582.6,0.05721172]
[1674028737121,22.62626269,1582.7,1582.6,0.05721172]
[1674028743108,22.62626269,1582.7,1582.6,1.61221172]
[1674028743109,0.066,1582.7,1582.6,1.61221172]
[1674028743264,3.1,1582.8,1582.6,19.65278874]
[1674028743476,3.1,1582.8,1582.6,25.03404558]
[1674028743864,3.1,1582.8,1582.7,3.11662407]
[1674028744150,3.1,1582.8,1582.7,19.97162344]
[1674028744464,3.1,1582.8,1582.7,21.94010022]
[1674028744683,3.1,1582.8,1582.7,24.99662758]
[1674028749824,3.1,1582.8,1582.7,31.31493758]
[1674028750725,3.1,1582.8,1582.7,32.51493758]
[1674028753991,3.09602405,1582.8,1582.7,32.51493758]
[1674028756783,3.09602405,1582.8,1582.7,30.60900764]
[1674028758455,3.09602405,1582.8,1582.7,31.65825928]
[1674028761966,3.09602405,1582.8,1582.7,32.02654909]
[1674028764030,3.09602405,1582.8,1582.7,33.56259909]
[1674028764245,3.09602405,1582.8,1582.7,34.01159909]
[1674028764455,3.09602405,1582.8,1582.7,35.28576536]
[1674028767078,1.34103259,1582.8,1582.7,35.94541894]
[1674028767910,1.21673259,1582.8,1582.7,35.94541894]
[1674028768533,1.21673259,1582.8,1582.7,35.25207974]
[1674028770421,1.21673259,1582.8,1582.7,36.17541894]
[1674028770873,1.21673259,1582.8,1582.7,35.51576536]
[1674028771073,1.16673259,1582.8,1582.7,35.51576536]
[1674028772868,1.16673259,1582.8,1582.7,35.25248214]
[1674028773258,1.07823259,1582.8,1582.7,35.25248214]
[1674028773726,1.07823259,1582.8,1582.7,34.59242616]
[1674028774154,1.07823259,1582.8,1582.7,35.25246277]
[1674028774468,1.01253259,1582.8,1582.7,34.59242616]
[1674028777139,1.61360373,1582.9,1582.7,34.59242616]
[1674028777388,1.61360373,1582.9,1582.8,32.64439682]
[1674028777598,1.61360373,1582.9,1582.8,32.70694366]
[1674028777929,1.61360373,1582.9,1582.8,31.27294366]
[1674028778101,1.58090373,1582.9,1582.8,31.27294366]
[1674028780555,1.58090373,1582.9,1582.8,30.61243334]
[1674028782818,1.58090373,1582.9,1582.8,31.57743334]
[1674028785355,1.58090373,1582.9,1582.8,32.62668498]
[1674028790795,1.58090373,1582.9,1582.8,30.23968498]
[1674028793279,1.58090373,1582.9,1582.8,31.43968498]
[1674028793789,1.58090373,1582.9,1582.8,31.20968498]
[1674028795889,1.58090373,1582.9,1582.8,31.86005045]
[1674028798893,1.57885989,1582.9,1582.8,31.86005045]
[1674028799105,1.57885989,1582.9,1582.8,30.84139517]
[1674028800158,1.57885989,1582.9,1582.8,31.81163503]
[1674028803724,1.57885989,1582.9,1582.8,30.76238339]
[1674028805146,1.57885989,1582.9,1582.8,31.72415473]
[1674028805985,1.57885989,1582.9,1582.8,33.71196121]
[1674028806530,1.57885989,1582.9,1582.8,32.64749393]
[1674028806898,1.57885989,1582.9,1582.8,34.63530041]
[1674028807116,1.65982306,1583.0,1582.8,34.86530041]
[1674028807322,0.65930892,1583.1,1583.0,1.0]
[1674028807526,0.65930892,1583.1,1583.0,26.57537369]
[1674028807767,0.65930892,1583.1,1583.0,29.49251211]
[1674028807970,8.92e-06,1583.1,1583.0,29.49251211]
[1674028808196,16.9511,1583.5,1583.0,32.40365779]
[1674028808412,16.9511,1583.5,1583.4,0.66276886]
[1674028808732,0.066,1583.5,1583.4,22.38279721]
[1674028808920,4.83415044,1583.6,1583.4,22.44534405]
[1674028809249,4.83415044,1583.6,1583.5,15.74686407]
[1674028809402,4.83415044,1583.6,1583.5,15.80941091]
[1674028813041,6.64927381,1583.6,1583.5,0.06254684]
[1674028813184,7.90627381,1583.6,1583.4,12.69331684]
[1674028813398,1.2,1583.5,1583.4,15.80994091]
[1674028813934,1.2,1583.5,1583.4,9.49442091]
[1674028814155,1.2,1583.5,1583.4,15.80994091]
[1674028815602,1.1492,1583.5,1583.4,15.80994091]
[1674028817719,1.1512,1583.5,1583.4,15.80833502]
[1674028817912,1.1512,1583.5,1583.4,15.80994091]
[1674028817913,1.1492,1583.5,1583.4,15.80994091]
[1674028818122,1.1492,1583.5,1583.4,22.12546091]
[1674028821343,1.1492,1583.5,1583.4,22.12385502]
[1674028821673,1.1492,1583.5,1583.4,22.12546091]
[1674028823233,6.09115044,1583.6,1583.4,22.12546091]
[1674028823446,6.09115044,1583.6,1583.5,3.11662407]
[1674028823654,6.09115044,1583.6,1583.5,15.74686407]
[1674028823874,6.09115044,1583.6,1583.5,15.80941091]
[1674028827285,1.38280991,1583.6,1583.5,15.80941091]
[1674028827490,1.31680991,1583.6,1583.5,15.80941091]
[1674028827986,1.31680991,1583.6,1583.5,15.80696697]
[1674028829023,1.46319923,1583.6,1583.5,0.06254684]
[1674028829182,2.66319923,1583.6,1583.4,0.06254684]
[1674028829393,1.46319923,1583.6,1583.3,6.38035219]
[1674028829590,1.46319923,1583.6,1583.3,6.37815684]
[1674028831861,1.46319923,1583.6,1583.3,12.69407684]
[1674028832646,1.31680991,1583.6,1583.4,3.11662407]
[1674028832857,1.31680991,1583.6,1583.4,15.74713407]
[1674028833172,1.31680991,1583.6,1583.4,15.80968091]
[1674028833428,1.194,1583.5,1583.4,15.80968091]
[1674028833807,1.194,1583.5,1583.4,22.12520091]
[1674028840642,1.194,1583.5,1583.4,15.80968091]
[1674028841074,2.194,1583.5,1583.4,15.80968091]
[1674028842422,2.194,1583.5,1583.4,22.12520091]
[1674028843495,1.194,1583.5,1583.4,22.12520091]
[1674028844408,1.194,1583.5,1583.4,22.55183861]
[1674028848147,1.194,1583.5,1583.4,28.50512393]
[1674028848365,0.12580991,1583.6,1583.4,30.23059838]
[1674028848681,0.12580991,1583.6,1583.5,27.70603606]
[1674028848869,0.12580991,1583.6,1583.5,28.49990406]
[1674028849245,0.12377426,1583.6,1583.5,28.49990406]
[1674028849596,0.12377426,1583.6,1583.5,32.47232746]
[1674028850418,0.12377426,1583.6,1583.5,33.46648075]
[1674028850707,0.12377426,1583.6,1583.5,32.80406646]
[1674028850876,0.12377426,1583.6,1583.5,32.47177345]
[1674028852967,0.12377426,1583.6,1583.5,31.80991317]
[1674028853152,0.12377426,1583.6,1583.5,32.47177345]
[1674028853769,0.12377426,1583.6,1583.5,34.12960418]
[1674028854022,0.12377426,1583.6,1583.5,32.80406646]
[1674028854464,0.12377426,1583.6,1583.5,33.13545089]
[1674028854634,0.12377426,1583.6,1583.5,32.80175605]
[1674028856604,0.12377426,1583.6,1583.5,33.46282545]
[1674028856809,0.12377426,1583.6,1583.5,33.03175605]
[1674028857019,0.12377426,1583.6,1583.5,33.6927292]
[1674028857702,0.12377426,1583.6,1583.5,32.47088632]
[1674028857913,0.12377426,1583.6,1583.5,31.80991317]
[1674028858086,0.12377426,1583.6,1583.5,27.83588388]
[1674028858300,0.12377426,1583.6,1583.5,27.83748977]
[1674028861074,0.12377426,1583.6,1583.5,26.61748977]
[1674028861258,0.12377426,1583.6,1583.5,15.80941091]
[1674028861966,1.26520208,1583.7,1583.5,15.80941091]
[1674028862212,1.53210657,1583.7,1583.5,22.12453091]
[1674028862388,0.34110657,1583.7,1583.5,22.12453091]
[1674028862822,0.07420208,1583.7,1583.5,22.12292502]
[1674028863025,0.07420208,1583.7,1583.5,22.12453091]
[1674028863850,0.07420208,1583.7,1583.6,3.11662407]
[1674028864058,0.07420208,1583.7,1583.6,6.31472]
[1674028864297,0.07420208,1583.7,1583.6,6.37726684]
[1674028867578,0.07420208,1583.7,1583.6,6.07726684]
[1674028867963,0.21540657,1583.7,1583.6,6.07726684]
[1674028869140,1.41540657,1583.7,1583.6,0.06254684]
[1674028869354,1.41540657,1583.7,1583.4,0.06254684]
[1674028869647,1.194,1583.6,1583.3,6.37813684]
[1674028869940,0.1194,1583.5,1583.3,6.37813684]
[1674028870130,1.3194,1583.5,1583.3,0.06254684]
[1674028870306,2.399,1583.4,1583.2,0.06254684]
[1674028870516,1.194,1583.3,1583.1,7.20751645]
[1674028870786,1.194,1583.3,1583.1,9.49555091]
[1674028870997,1.4333,1583.3,1583.1,9.49555091]
[1674028871363,1.4333,1583.3,1583.1,0.06254684]
[1674028871571,2.39,1583.2,1583.0,3.06254684]
[1674028871824,2.39,1583.2,1582.9,0.06254684]
[1674028871825,1.2,1583.1,1582.9,0.06254684]
[1674028872012,1.1368,1583.1,1583.0,0.55809684]
[1674028872224,1.1368,1583.1,1582.8,13.35892999]
[1674028872225,2.832092,1583.1,1582.8,13.35892999]
[1674028872541,0.066,1583.2,1583.0,3.11662407]
[1674028872724,11.9598,1583.5,1583.1,9.43334407]
[1674028872929,12.0258,1583.5,1583.2,3.11662407]
[1674028873178,1.266,1583.5,1583.2,3.11662407]
[1674028873508,1.2,1583.5,1583.2,3.11662407]
[1674028874040,0.12,1583.4,1583.2,3.11662407]
[1674028874194,0.12,1583.4,1583.1,6.37926684]
[1674028874404,0.12,1583.4,1583.1,9.49589091]
[1674028874675,1.266,1583.5,1583.2,3.11662407]
[1674028874882,18.5362,1583.6,1583.3,6.31592]
[1674028875036,9.4938,1583.6,1583.3,6.37846684]
[1674028875403,11.08206421,1583.6,1583.3,6.37846684]
[1674028876145,10.99246421,1583.6,1583.3,6.37846684]
[1674028876982,10.99246421,1583.6,1583.3,15.81101091]
[1674028878305,8.2998,1583.6,1583.3,15.81101091]
[1674028878517,8.2998,1583.6,1583.3,22.12693091]
[1674028881940,0.066,1583.6,1583.3,22.12693091]
[1674028882092,0.07420208,1583.7,1583.4,10.67671027]
[1674028882302,0.07420208,1583.7,1583.5,7.67671027]
[1674028882493,0.07420208,1583.7,1583.5,7.73925711]
[1674028882701,0.07420208,1583.7,1583.6,7.67671027]
[1674028883066,0.07420208,1583.7,1583.6,7.73925711]
[1674028886523,0.07420208,1583.7,1583.6,14.05397711]
[1674028890580,0.07420208,1583.7,1583.6,20.36869711]
[1674028893015,0.07420208,1583.7,1583.6,23.85843882]
[1674028894380,0.07420208,1583.7,1583.6,24.14643329]
[1674028896232,0.07420208,1583.7,1583.6,20.65669158]
[1674028897897,0.07420208,1583.7,1583.6,14.34197158]
[1674028898688,0.07420208,1583.7,1583.6,8.02725158]
[1674028900053,2.72620208,1583.7,1583.6,8.02725158]
[1674028900529,3.72620208,1583.7,1583.6,8.02725158]
[1674028900695,5.11376962,1583.7,1583.6,8.02725158]
[1674028901067,5.17976962,1583.7,1583.6,8.02725158]
[1674028902324,11.49408962,1583.7,1583.6,8.02725158]
[1674028902472,10.29645764,1583.7,1583.6,8.02725158]
[1674028902690,24.12266476,1583.7,1583.6,8.02725158]
[1674028903368,17.80834476,1583.7,1583.6,8.02725158]
[1674028903945,24.4537349,1583.7,1583.6,8.02400923]
[1674028904417,25.8867349,1583.7,1583.6,8.02400923]
[1674028904623,28.8867349,1583.7,1583.6,8.02400923]
[1674028904841,33.75632628,1583.7,1583.6,0.35054131]
[1674028905002,31.91264416,1583.7,1583.6,0.28799447]
[1674028905634,38.52926823,1583.7,1583.6,0.28799447]
[1674028905843,38.96921176,1583.7,1583.3,0.82759255]
[1674028906064,23.46357309,1583.4,1583.3,0.82759255]
[1674028906270,23.30379208,1583.4,1583.3,0.82759255]
[1674028906526,25.10756,1583.4,1583.3,0.82759255]
[1674028907574,22.10756,1583.4,1583.3,0.82759255]
[1674028911132,20.67556,1583.4,1583.3,0.82759255]
[1674028911323,23.37508052,1583.4,1583.3,0.82759255]
[1674028912047,23.14508052,1583.4,1583.3,0.82759255]
[1674028913215,21.71208052,1583.4,1583.3,0.82759255]
[1674028914409,28.82291426,1583.4,1583.3,0.82759255]
[1674028914638,30.12897239,1583.4,1583.3,0.82759255]
[1674028915271,30.7885842,1583.4,1583.3,0.82759255]
[1674028915486,30.12897239,1583.4,1583.3,0.82759255]
[1674028916549,30.78822947,1583.4,1583.3,0.82759255]
[1674028916704,28.99315825,1583.4,1583.3,0.82759255]
[1674028917744,29.7962121,1583.4,1583.3,0.82759255]
[1674028917998,28.99315825,1583.4,1583.3,0.82759255]
[1674028918397,29.79584625,1583.4,1583.3,0.82759255]
[1674028918614,29.79583929,1583.4,1583.3,0.82759255]
[1674028918840,30.78708548,1583.4,1583.3,0.82759255]
[1674028919223,29.79587763,1583.4,1583.3,0.82759255]
[1674028921431,28.99315825,1583.4,1583.3,0.82759255]
[1674028922306,32.10978232,1583.4,1583.3,0.82759255]
[1674028922710,30.92470459,1583.4,1583.3,0.82759255]
[1674028928335,32.10898996,1583.4,1583.3,0.82759255]
[1674028928862,30.92470459,1583.4,1583.3,0.82418432]
[1674028929979,29.49170459,1583.4,1583.3,0.82418432]
[1674028930900,30.67611208,1583.4,1583.3,0.82418432]
[1674028931490,31.47853006,1583.4,1583.3,0.82418432]
[1674028933865,31.47853006,1583.4,1582.8,8.38711369]
[1674028934090,31.47853006,1583.4,1582.8,10.12311074]
[1674028934091,3.85293556,1583.3,1582.8,10.12311074]
[1674028934410,18.94954,1583.2,1582.8,10.12311074]
[1674028934600,19.01554,1583.2,1582.8,8.38711369]
[1674028935497,19.01554,1583.2,1582.9,0.29799062]
[1674028937452,19.67479708,1583.2,1582.9,0.29799062]